[Event "Titled Tuesday Blitz February 14 Early 2023"]
[White "Ljukin, Sergei"]
[Black "Barrera Rincones, Josmar Joel"]
[WhiteFideId "14102200"]
[BlackFideId "3975487"]
[WhiteElo "2362"]
[BlackElo "1399"]
[Result "1-0"]
[Round "01"]
[TimeControl "180+2"]
[Date "2023.02.15"]
[WhiteClock "0:00:09"]
[BlackClock "0:00:20"]

1. e4 {[%clk 0:02:59]}  b6 {[%clk 0:02:47]} 2. d4 {[%clk 0:02:57]}  Bb7 {[%clk 0:02:47]} 3. Bd3 {[%clk 0:02:57]}  e6 {[%clk 0:02:48]} 4. Nf3 {[%clk 0:02:57]}  c5 {[%clk 0:02:46]} 5. c3 {[%clk 0:02:56]}  Be7 {[%clk 0:02:45]} 6. O-O {[%clk 0:02:56]}  d6 {[%clk 0:02:45]} 7. Bf4 {[%clk 0:02:54]}  Nd7 {[%clk 0:02:45]} 8. Nbd2 {[%clk 0:02:53]}  Ngf6 {[%clk 0:02:44]} 9. h3 {[%clk 0:02:53]}  O-O {[%clk 0:02:44]} 10. Re1 {[%clk 0:02:52]}  Re8 {[%clk 0:02:34]} 11. Qe2 {[%clk 0:02:48]}  Bf8 {[%clk 0:02:11]} 12. e5 {[%clk 0:02:40]}  Nd5 {[%clk 0:02:11]} 13. Bh2 {[%clk 0:02:38]}  Qc7 {[%clk 0:02:07]} 14. a3 {[%clk 0:02:33]}  dxe5 {[%clk 0:01:43]} 15. dxe5 {[%clk 0:02:33]}  Rad8 {[%clk 0:01:43]} 16. Rad1 {[%clk 0:02:29]}  Ne7 {[%clk 0:01:39]} 17. Ne4 {[%clk 0:02:25]}  Ng6 {[%clk 0:01:39]} 18. Neg5 {[%clk 0:02:09]}  Be7 {[%clk 0:01:25]} 19. h4 {[%clk 0:02:00]}  h6 {[%clk 0:01:15]} 20. h5 {[%clk 0:01:59]}  Ngf8 {[%clk 0:01:03]} 21. Ne4 {[%clk 0:01:57]}  Bd5 {[%clk 0:00:57]} 22. c4 {[%clk 0:01:38]}  Bc6 {[%clk 0:00:57]} 23. Bb1 {[%clk 0:01:24]}  Qb7 {[%clk 0:00:54]} 24. Nd6 {[%clk 0:01:19]}  Bxd6 {[%clk 0:00:53]} 25. Rxd6 {[%clk 0:01:18]}  b5 {[%clk 0:00:48]} 26. cxb5 {[%clk 0:01:07]}  Bxb5 {[%clk 0:00:49]} 27. Be4 {[%clk 0:00:52]}  Bxe2 {[%clk 0:00:37]} 28. Bxb7 {[%clk 0:00:52]}  Bxf3 {[%clk 0:00:37]} 29. Bxf3 {[%clk 0:00:51]}  Rb8 {[%clk 0:00:38]} 30. Bc6 {[%clk 0:00:47]}  Re7 {[%clk 0:00:28]} 31. Red1 {[%clk 0:00:42]}  Nb6 {[%clk 0:00:25]} 32. Rd8 {[%clk 0:00:42]}  Rxd8 {[%clk 0:00:22]} 33. Rxd8 {[%clk 0:00:41]}  Nc4 {[%clk 0:00:20]} 34. b4 {[%clk 0:00:38]}  Rc7 {[%clk 0:00:20]} 35. b5 {[%clk 0:00:37]}  Nb6 {[%clk 0:00:19]} 36. Bf4 {[%clk 0:00:31]}  Rc8 {[%clk 0:00:19]} 37. Rd1 {[%clk 0:00:19]}  f6 {[%clk 0:00:19]} 38. Be3 {[%clk 0:00:18]}  c4 {[%clk 0:00:17]} 39. exf6 {[%clk 0:00:17]}  gxf6 {[%clk 0:00:17]} 40. Bxh6 {[%clk 0:00:17]}  Kf7 {[%clk 0:00:18]} 41. Be3 {[%clk 0:00:16]}  e5 {[%clk 0:00:17]} 42. Rc1 {[%clk 0:00:16]}  Ne6 {[%clk 0:00:16]} 43. Bxb6 {[%clk 0:00:16]}  axb6 {[%clk 0:00:17]} 44. Rxc4 {[%clk 0:00:16]}  Nc5 {[%clk 0:00:18]} 45. a4 {[%clk 0:00:15]}  Rd8 {[%clk 0:00:18]} 46. a5 {[%clk 0:00:15]}  Rd1+ {[%clk 0:00:16]} 47. Kh2 {[%clk 0:00:15]}  Nd3 {[%clk 0:00:16]} 48. axb6 {[%clk 0:00:13]}  Nxf2 {[%clk 0:00:16]} 49. b7 {[%clk 0:00:12]}  Rd8 {[%clk 0:00:16]} 50. Bd5+ {[%clk 0:00:10]}  Ke7 {[%clk 0:00:16]} 51. Rc8 {[%clk 0:00:09]}  Rxd5 {[%clk 0:00:16]} 52. b8=Q {[%clk 0:00:10]}  Ng4+ {[%clk 0:00:17]} 53. Kg3 {[%clk 0:00:10]}  Rd3+ {[%clk 0:00:18]} 54. Kxg4 {[%clk 0:00:10]}  f5+ {[%clk 0:00:19]} 55. Kxf5 {[%clk 0:00:10]}  Rg3 {[%clk 0:00:20]} 56. Rc7+ {[%clk 0:00:09]} 1-0


[Site "https://www.chess.com"]

[Event "Titled Tuesday Blitz February 14 Early 2023"]
[White "Reprintsev, Alexander"]
[Black "Davalos Prieto, Abel Justo"]
[WhiteFideId "14100541"]
[BlackFideId "5102766"]
[WhiteElo "2253"]
[BlackElo "2029"]
[Result "0-1"]
[Round "01"]
[TimeControl "180+2"]
[Date "2023.02.15"]
[WhiteClock "0:00:12"]
[BlackClock "0:00:24"]

1. e4 {[%clk 0:02:49]}  c5 {[%clk 0:02:53]} 2. b3 {[%clk 0:02:48]}  Nc6 {[%clk 0:02:48]} 3. Bb2 {[%clk 0:02:48]}  e5 {[%clk 0:02:46]} 4. f4 {[%clk 0:02:48]}  d6 {[%clk 0:02:45]} 5. Qf3 {[%clk 0:02:47]}  Nf6 {[%clk 0:02:45]} 6. Bb5 {[%clk 0:02:46]}  Qc7 {[%clk 0:02:34]} 7. fxe5 {[%clk 0:02:44]}  dxe5 {[%clk 0:02:33]} 8. Bxc6+ {[%clk 0:02:44]}  bxc6 {[%clk 0:02:33]} 9. d3 {[%clk 0:02:43]}  Bd6 {[%clk 0:02:22]} 10. Nd2 {[%clk 0:02:42]}  O-O {[%clk 0:02:21]} 11. Qg3 {[%clk 0:02:38]}  Nh5 {[%clk 0:02:19]} 12. Qf3 {[%clk 0:02:19]}  Nf6 {[%clk 0:02:10]} 13. h3 {[%clk 0:02:17]}  a5 {[%clk 0:02:08]} 14. a4 {[%clk 0:02:17]}  c4 {[%clk 0:01:58]} 15. dxc4 {[%clk 0:02:14]}  Bb4 {[%clk 0:01:52]} 16. O-O-O {[%clk 0:02:08]}  Qe7 {[%clk 0:01:43]} 17. g4 {[%clk 0:01:57]}  Ba3 {[%clk 0:01:41]} 18. Nb1 {[%clk 0:01:55]}  Bxb2+ {[%clk 0:01:40]} 19. Kxb2 {[%clk 0:01:56]}  Rb8 {[%clk 0:01:39]} 20. g5 {[%clk 0:01:46]}  Nd7 {[%clk 0:01:38]} 21. h4 {[%clk 0:01:44]}  Nc5 {[%clk 0:01:38]} 22. Nc3 {[%clk 0:01:43]}  Be6 {[%clk 0:01:35]} 23. Qe2 {[%clk 0:01:32]}  Qb7 {[%clk 0:01:32]} 24. Kc1 {[%clk 0:00:19]}  Qb4 {[%clk 0:01:12]} 25. Qe3 {[%clk 0:00:16]}  Rfd8 {[%clk 0:01:03]} 26. Rxd8+ {[%clk 0:00:15]}  Rxd8 {[%clk 0:01:01]} 27. Nge2 {[%clk 0:00:16]}  Qa3+ {[%clk 0:00:31]} 28. Kb1 {[%clk 0:00:16]}  Rb8 {[%clk 0:00:31]} 29. Nb5 {[%clk 0:00:15]}  cxb5 {[%clk 0:00:29]} 30. cxb5 {[%clk 0:00:15]}  Nxa4 {[%clk 0:00:25]} 31. Nc1 {[%clk 0:00:12]}  Qb2# {[%clk 0:00:24]} 0-1


[Site "https://www.chess.com"]

[Event "Titled Tuesday Blitz February 14 Early 2023"]
[White "Jesusesmifuerza"]
[Black "Lehtosaari, Mauri"]
[BlackFideId "501999"]
[WhiteElo "2006"]
[BlackElo "2176"]
[Result "0-1"]
[Round "01"]
[TimeControl "180+2"]
[Date "2023.02.15"]
[WhiteClock "0:00:12"]
[BlackClock "0:00:14"]

1. d4 {[%clk 0:02:59]}  d5 {[%clk 0:02:56]} 2. Nc3 {[%clk 0:02:59]}  Nf6 {[%clk 0:02:50]} 3. Bf4 {[%clk 0:02:59]}  a6 {[%clk 0:02:48]} 4. e3 {[%clk 0:02:59]}  c5 {[%clk 0:02:46]} 5. dxc5 {[%clk 0:02:59]}  Bf5 {[%clk 0:02:44]} 6. g4 {[%clk 0:02:26]}  Bxg4 {[%clk 0:02:36]} 7. Be2 {[%clk 0:02:25]}  Bxe2 {[%clk 0:02:33]} 8. Ngxe2 {[%clk 0:02:26]}  e6 {[%clk 0:02:33]} 9. b4 {[%clk 0:02:24]}  Nc6 {[%clk 0:02:26]} 10. Rg1 {[%clk 0:02:21]}  Nxb4 {[%clk 0:02:17]} 11. Na4 {[%clk 0:02:08]}  Qa5 {[%clk 0:02:01]} 12. c3 {[%clk 0:02:07]}  Nd3+ {[%clk 0:01:49]} 13. Qxd3 {[%clk 0:02:04]}  Qxa4 {[%clk 0:01:48]} 14. Rb1 {[%clk 0:01:59]}  Qxa2 {[%clk 0:00:38]} 15. Rxb7 {[%clk 0:01:57]}  Bxc5 {[%clk 0:00:28]} 16. Rxg7 {[%clk 0:01:49]}  Qa1+ {[%clk 0:00:20]} 17. Qd1 {[%clk 0:01:47]}  Qxd1+ {[%clk 0:00:19]} 18. Kxd1 {[%clk 0:01:48]}  Rf8 {[%clk 0:00:20]} 19. Bg5 {[%clk 0:01:31]}  Be7 {[%clk 0:00:20]} 20. Rxh7 {[%clk 0:01:20]}  a5 {[%clk 0:00:18]} 21. Kc2 {[%clk 0:01:02]}  Nxh7 {[%clk 0:00:16]} 22. Rxe7+ {[%clk 0:01:01]}  Kd8 {[%clk 0:00:16]} 23. Ra7+ {[%clk 0:01:01]}  Nxg5 {[%clk 0:00:15]} 24. Rxa8+ {[%clk 0:01:01]}  Ke7 {[%clk 0:00:16]} 25. Rxa5 {[%clk 0:01:01]}  Rh8 {[%clk 0:00:15]} 26. Kd2 {[%clk 0:00:33]}  Rxh2 {[%clk 0:00:14]} 27. Ke1 {[%clk 0:00:33]}  Ne4 {[%clk 0:00:15]} 28. Ng3 {[%clk 0:00:15]}  Nxf2 {[%clk 0:00:13]} 29. c4 {[%clk 0:00:13]}  Nd3+ {[%clk 0:00:13]} 30. Kd1 {[%clk 0:00:12]}  dxc4 {[%clk 0:00:14]} 31. Ra4 {[%clk 0:00:11]}  c3 {[%clk 0:00:14]} 32. Rc4 {[%clk 0:00:12]}  Rd2# {[%clk 0:00:14]} 0-1


[Site "https://www.chess.com"]

[Event "Titled Tuesday Blitz February 14 Early 2023"]
[White "Kokoszczynski, Jan"]
[Black "Vargas, Mauricio"]
[WhiteFideId "1174460"]
[BlackFideId "4404572"]
[WhiteElo "2247"]
[BlackElo "2035"]
[Result "1-0"]
[Round "01"]
[TimeControl "180+2"]
[Date "2023.02.15"]
[WhiteClock "0:00:46"]
[BlackClock "0:00:03"]

1. c4 {[%clk 0:02:55]}  e5 {[%clk 0:02:57]} 2. Nc3 {[%clk 0:02:54]}  f5 {[%clk 0:02:56]} 3. d4 {[%clk 0:02:49]}  e4 {[%clk 0:02:55]} 4. g3 {[%clk 0:02:48]}  Nf6 {[%clk 0:02:50]} 5. h4 {[%clk 0:02:39]}  h6 {[%clk 0:02:41]} 6. Nh3 {[%clk 0:02:38]}  Nc6 {[%clk 0:02:34]} 7. Nf4 {[%clk 0:02:32]}  d6 {[%clk 0:02:24]} 8. Ng6 {[%clk 0:02:14]}  Rg8 {[%clk 0:02:20]} 9. Nf4 {[%clk 0:02:04]}  Bd7 {[%clk 0:02:10]} 10. h5 {[%clk 0:02:04]}  Qe7 {[%clk 0:01:44]} 11. e3 {[%clk 0:02:04]}  Qf7 {[%clk 0:01:42]} 12. Be2 {[%clk 0:02:04]}  O-O-O {[%clk 0:01:41]} 13. b3 {[%clk 0:01:57]}  Nh7 {[%clk 0:01:08]} 14. Bb2 {[%clk 0:01:49]}  Ng5 {[%clk 0:01:07]} 15. Qd2 {[%clk 0:01:47]}  Nf3+ {[%clk 0:00:52]} 16. Bxf3 {[%clk 0:01:46]}  exf3 {[%clk 0:00:53]} 17. Qd1 {[%clk 0:01:35]}  Be7 {[%clk 0:00:51]} 18. Qxf3 {[%clk 0:01:34]}  Bg5 {[%clk 0:00:49]} 19. Ncd5 {[%clk 0:01:29]}  Rde8 {[%clk 0:00:39]} 20. O-O-O {[%clk 0:01:19]}  Re4 {[%clk 0:00:25]} 21. Kb1 {[%clk 0:01:06]}  Rd8 {[%clk 0:00:22]} 22. Bc3 {[%clk 0:01:02]}  Kb8 {[%clk 0:00:21]} 23. Kb2 {[%clk 0:01:02]}  Nb4 {[%clk 0:00:15]} 24. Bxb4 {[%clk 0:01:01]}  c6 {[%clk 0:00:15]} 25. Bxd6+ {[%clk 0:01:00]}  Ka8 {[%clk 0:00:14]} 26. Nc7+ {[%clk 0:01:01]}  Kb8 {[%clk 0:00:14]} 27. Nfe6 {[%clk 0:00:52]}  Bxe6 {[%clk 0:00:08]} 28. Nxe6+ {[%clk 0:00:52]}  Kc8 {[%clk 0:00:07]} 29. Nxg5 {[%clk 0:00:51]}  hxg5 {[%clk 0:00:07]} 30. Be5 {[%clk 0:00:51]}  g4 {[%clk 0:00:06]} 31. Qe2 {[%clk 0:00:51]}  Qd7 {[%clk 0:00:05]} 32. h6 {[%clk 0:00:49]}  c5 {[%clk 0:00:03]} 33. hxg7 {[%clk 0:00:46]} 1-0


[Site "https://www.chess.com"]

[Event "Titled Tuesday Blitz February 14 Early 2023"]
[White "Toncheva, Nadya"]
[Black "Pantazi, Adrian"]
[WhiteFideId "2924056"]
[BlackFideId "1225596"]
[WhiteElo "2295"]
[BlackElo "1737"]
[Result "1-0"]
[Round "01"]
[TimeControl "180+2"]
[Date "2023.02.15"]
[WhiteClock "0:00:16"]
[BlackClock "0:00:03"]

1. e4 {[%clk 0:03:00]}  c6 {[%clk 0:02:50]} 2. d4 {[%clk 0:03:00]}  d5 {[%clk 0:02:50]} 3. Nc3 {[%clk 0:03:00]}  dxe4 {[%clk 0:02:50]} 4. Nxe4 {[%clk 0:03:01]}  Bf5 {[%clk 0:02:50]} 5. Ng3 {[%clk 0:03:01]}  Bg6 {[%clk 0:02:50]} 6. h4 {[%clk 0:03:02]}  h6 {[%clk 0:02:50]} 7. Nf3 {[%clk 0:03:02]}  Nd7 {[%clk 0:02:50]} 8. Bd3 {[%clk 0:03:02]}  Bxd3 {[%clk 0:02:49]} 9. Qxd3 {[%clk 0:03:03]}  Ngf6 {[%clk 0:02:48]} 10. Bf4 {[%clk 0:03:02]}  e6 {[%clk 0:02:48]} 11. O-O-O {[%clk 0:03:01]}  Qa5 {[%clk 0:02:47]} 12. Kb1 {[%clk 0:03:00]}  O-O-O {[%clk 0:02:46]} 13. c4 {[%clk 0:02:53]}  Qa6 {[%clk 0:02:23]} 14. Qc3 {[%clk 0:02:44]}  Qb6 {[%clk 0:02:18]} 15. Rhe1 {[%clk 0:02:30]}  Bb4 {[%clk 0:02:17]} 16. Qe3 {[%clk 0:02:16]}  Bxe1 {[%clk 0:02:16]} 17. Rxe1 {[%clk 0:02:12]}  Ng4 {[%clk 0:02:10]} 18. Qe2 {[%clk 0:02:06]}  e5 {[%clk 0:02:01]} 19. Nxe5 {[%clk 0:01:45]}  Ngxe5 {[%clk 0:01:54]} 20. dxe5 {[%clk 0:01:42]}  Rhe8 {[%clk 0:01:45]} 21. Nf5 {[%clk 0:01:31]}  Nf8 {[%clk 0:00:56]} 22. Qg4 {[%clk 0:00:58]}  Ne6 {[%clk 0:00:51]} 23. Nd6+ {[%clk 0:00:38]}  Kb8 {[%clk 0:00:40]} 24. Nxe8 {[%clk 0:00:33]}  Rxe8 {[%clk 0:00:40]} 25. Be3 {[%clk 0:00:33]}  Qb4 {[%clk 0:00:36]} 26. Rd1 {[%clk 0:00:33]}  h5 {[%clk 0:00:31]} 27. Qe4 {[%clk 0:00:32]}  Nc5 {[%clk 0:00:26]} 28. Qc2 {[%clk 0:00:26]}  Na4 {[%clk 0:00:15]} 29. Bf4 {[%clk 0:00:22]}  Ka8 {[%clk 0:00:14]} 30. Bd2 {[%clk 0:00:19]}  Nxb2 {[%clk 0:00:04]} 31. Bxb4 {[%clk 0:00:17]}  Nxc4 {[%clk 0:00:04]} 32. Qxc4 {[%clk 0:00:17]}  a6 {[%clk 0:00:03]} 33. Qxf7 {[%clk 0:00:16]} 1-0


[Site "https://www.chess.com"]

[Event "Titled Tuesday Blitz February 14 Early 2023"]
[White "Taspinar, Yanki"]
[Black "Nihal Sarin"]
[WhiteFideId "34561188"]
[BlackFideId "25092340"]
[WhiteElo "2262"]
[BlackElo "2673"]
[Result "0-1"]
[Round "02"]
[TimeControl "180+2"]
[Date "2023.02.15"]
[WhiteClock "0:00:12"]
[BlackClock "0:00:18"]

1. Nf3 {[%clk 0:02:57]}  d5 {[%clk 0:02:59]} 2. d4 {[%clk 0:02:57]}  Nf6 {[%clk 0:02:54]} 3. g3 {[%clk 0:02:57]}  Bf5 {[%clk 0:02:52]} 4. Bg2 {[%clk 0:02:58]}  e6 {[%clk 0:02:52]} 5. O-O {[%clk 0:02:58]}  c6 {[%clk 0:02:52]} 6. b3 {[%clk 0:02:57]}  h6 {[%clk 0:02:51]} 7. Bb2 {[%clk 0:02:57]}  Nbd7 {[%clk 0:02:51]} 8. c4 {[%clk 0:02:57]}  Be7 {[%clk 0:02:51]} 9. Nc3 {[%clk 0:02:56]}  O-O {[%clk 0:02:51]} 10. Nd2 {[%clk 0:02:56]}  a5 {[%clk 0:02:50]} 11. e4 {[%clk 0:02:53]}  dxe4 {[%clk 0:02:51]} 12. Ndxe4 {[%clk 0:02:54]}  Nxe4 {[%clk 0:02:51]} 13. Nxe4 {[%clk 0:02:54]}  a4 {[%clk 0:02:52]} 14. Re1 {[%clk 0:02:46]}  Nf6 {[%clk 0:02:50]} 15. Nxf6+ {[%clk 0:01:57]}  Bxf6 {[%clk 0:02:51]} 16. Qd2 {[%clk 0:01:57]}  axb3 {[%clk 0:02:23]} 17. axb3 {[%clk 0:01:57]}  Qb6 {[%clk 0:02:24]} 18. b4 {[%clk 0:01:50]}  Rxa1 {[%clk 0:02:18]} 19. Rxa1 {[%clk 0:01:50]}  Rd8 {[%clk 0:02:18]} 20. c5 {[%clk 0:01:50]}  Qc7 {[%clk 0:02:14]} 21. Qe3 {[%clk 0:01:29]}  Qd7 {[%clk 0:02:09]} 22. Rd1 {[%clk 0:01:08]}  Qe8 {[%clk 0:01:57]} 23. Bf3 {[%clk 0:01:02]}  Rd7 {[%clk 0:01:57]} 24. b5 {[%clk 0:00:45]}  cxb5 {[%clk 0:01:38]} 25. c6 {[%clk 0:00:46]}  bxc6 {[%clk 0:01:26]} 26. Bxc6 {[%clk 0:00:47]}  Qc8 {[%clk 0:01:27]} 27. Bxd7 {[%clk 0:00:46]}  Qxd7 {[%clk 0:01:28]} 28. Qf3 {[%clk 0:00:19]}  b4 {[%clk 0:01:18]} 29. Rc1 {[%clk 0:00:18]}  Kh7 {[%clk 0:01:05]} 30. h4 {[%clk 0:00:12]}  Qa4 {[%clk 0:00:27]} 31. g4 {[%clk 0:00:11]}  Bg6 {[%clk 0:00:27]} 32. h5 {[%clk 0:00:12]}  Bc2 {[%clk 0:00:27]} 33. Qe2 {[%clk 0:00:05]}  b3 {[%clk 0:00:26]} 34. Qd2 {[%clk 0:00:06]}  Qc6 {[%clk 0:00:16]} 35. Re1 {[%clk 0:00:07]}  Qf3 {[%clk 0:00:13]} 36. Qe2 {[%clk 0:00:07]}  Qh3 {[%clk 0:00:13]} 37. f3 {[%clk 0:00:04]}  Qg3+ {[%clk 0:00:12]} 38. Kf1 {[%clk 0:00:04]}  Bh4 {[%clk 0:00:12]} 39. Rc1 {[%clk 0:00:03]}  f5 {[%clk 0:00:10]} 40. Rxc2 {[%clk 0:00:04]}  bxc2 {[%clk 0:00:10]} 41. Qxc2 {[%clk 0:00:04]}  Qxf3+ {[%clk 0:00:11]} 42. Kg1 {[%clk 0:00:05]}  Qxg4+ {[%clk 0:00:11]} 43. Kf1 {[%clk 0:00:04]}  Qxh5 {[%clk 0:00:10]} 44. Qb3 {[%clk 0:00:03]}  Qg6 {[%clk 0:00:09]} 45. d5 {[%clk 0:00:02]}  exd5 {[%clk 0:00:08]} 46. Qxd5 {[%clk 0:00:03]}  Bf6 {[%clk 0:00:08]} 47. Bc1 {[%clk 0:00:03]}  Qg4 {[%clk 0:00:08]} 48. Qd3 {[%clk 0:00:02]}  Qe4 {[%clk 0:00:08]} 49. Qxe4 {[%clk 0:00:02]}  fxe4 {[%clk 0:00:09]} 50. Ke2 {[%clk 0:00:03]}  Kg6 {[%clk 0:00:09]} 51. Ba3 {[%clk 0:00:03]}  Kf5 {[%clk 0:00:09]} 52. Ke3 {[%clk 0:00:04]}  h5 {[%clk 0:00:10]} 53. Bc5 {[%clk 0:00:05]}  h4 {[%clk 0:00:11]} 54. Ke2 {[%clk 0:00:06]}  g5 {[%clk 0:00:11]} 55. Bg1 {[%clk 0:00:07]}  g4 {[%clk 0:00:12]} 56. Bh2 {[%clk 0:00:08]}  h3 {[%clk 0:00:13]} 57. Bg1 {[%clk 0:00:09]}  Be5 {[%clk 0:00:14]} 58. Bf2 {[%clk 0:00:10]}  h2 {[%clk 0:00:15]} 59. Bg1 {[%clk 0:00:11]}  h1=Q {[%clk 0:00:16]} 60. Bh2 {[%clk 0:00:12]}  Qf3+ {[%clk 0:00:17]} 61. Ke1 {[%clk 0:00:11]}  Bxh2 {[%clk 0:00:16]} 62. Kd2 {[%clk 0:00:11]}  Bf4+ {[%clk 0:00:17]} 63. Ke1 {[%clk 0:00:12]}  Qg2 {[%clk 0:00:18]} 64. Kd1 {[%clk 0:00:12]}  Qd2# {[%clk 0:00:18]} 0-1


[Site "https://www.chess.com"]

[Event "Titled Tuesday Blitz February 14 Early 2023"]
[White "Andreikin, Dmitry"]
[Black "Jaracz, Pawel"]
[WhiteFideId "4158814"]
[BlackFideId "1102222"]
[WhiteElo "2729"]
[BlackElo "2467"]
[Result "1/2-1/2"]
[Round "02"]
[TimeControl "180+2"]
[Date "2023.02.15"]
[WhiteClock "0:00:06"]
[BlackClock "0:00:07"]

1. e4 {[%clk 0:02:56]}  c5 {[%clk 0:02:57]} 2. Nc3 {[%clk 0:02:55]}  Nc6 {[%clk 0:02:57]} 3. Nge2 {[%clk 0:02:55]}  e6 {[%clk 0:02:56]} 4. d4 {[%clk 0:02:54]}  cxd4 {[%clk 0:02:56]} 5. Nxd4 {[%clk 0:02:55]}  Qc7 {[%clk 0:02:56]} 6. g4 {[%clk 0:02:53]}  a6 {[%clk 0:02:48]} 7. Be3 {[%clk 0:02:51]}  Ne5 {[%clk 0:02:42]} 8. f4 {[%clk 0:02:29]}  Nc4 {[%clk 0:02:42]} 9. Bxc4 {[%clk 0:02:29]}  Qxc4 {[%clk 0:02:42]} 10. Qd3 {[%clk 0:02:28]}  Qxd3 {[%clk 0:02:24]} 11. cxd3 {[%clk 0:02:29]}  b5 {[%clk 0:02:24]} 12. O-O-O {[%clk 0:02:25]}  Bb7 {[%clk 0:02:24]} 13. Kb1 {[%clk 0:02:26]}  Ne7 {[%clk 0:02:11]} 14. Rc1 {[%clk 0:02:23]}  Nc6 {[%clk 0:02:10]} 15. Nce2 {[%clk 0:02:23]}  Bd6 {[%clk 0:01:38]} 16. Nxc6 {[%clk 0:02:18]}  Bxc6 {[%clk 0:01:35]} 17. Nd4 {[%clk 0:02:13]}  Bb7 {[%clk 0:01:35]} 18. Nb3 {[%clk 0:02:13]}  a5 {[%clk 0:01:22]} 19. Rhf1 {[%clk 0:01:59]}  a4 {[%clk 0:01:20]} 20. Nd4 {[%clk 0:01:50]}  Ba6 {[%clk 0:01:20]} 21. Ne2 {[%clk 0:01:40]}  b4 {[%clk 0:01:19]} 22. Rfd1 {[%clk 0:01:40]}  f6 {[%clk 0:00:59]} 23. Bc5 {[%clk 0:01:39]}  Ke7 {[%clk 0:01:00]} 24. Bxd6+ {[%clk 0:01:13]}  Kxd6 {[%clk 0:01:00]} 25. Nd4 {[%clk 0:01:08]}  Rhc8 {[%clk 0:00:56]} 26. Nf3 {[%clk 0:01:07]}  Rxc1+ {[%clk 0:00:49]} 27. Kxc1 {[%clk 0:01:07]}  Rc8+ {[%clk 0:00:49]} 28. Kd2 {[%clk 0:01:03]}  a3 {[%clk 0:00:46]} 29. bxa3 {[%clk 0:00:58]}  Rc3 {[%clk 0:00:46]} 30. axb4 {[%clk 0:00:48]}  Rxd3+ {[%clk 0:00:46]} 31. Kc2 {[%clk 0:00:44]}  Rxd1 {[%clk 0:00:45]} 32. Kxd1 {[%clk 0:00:45]}  Bd3 {[%clk 0:00:33]} 33. Nd2 {[%clk 0:00:41]}  e5 {[%clk 0:00:33]} 34. fxe5+ {[%clk 0:00:35]}  Kxe5 {[%clk 0:00:31]} 35. a4 {[%clk 0:00:35]}  Kd4 {[%clk 0:00:31]} 36. b5 {[%clk 0:00:31]}  Kc5 {[%clk 0:00:29]} 37. Nb3+ {[%clk 0:00:12]}  Kb4 {[%clk 0:00:29]} 38. Nd4 {[%clk 0:00:11]}  g6 {[%clk 0:00:22]} 39. g5 {[%clk 0:00:09]}  fxg5 {[%clk 0:00:21]} 40. e5 {[%clk 0:00:09]}  Kxa4 {[%clk 0:00:22]} 41. e6 {[%clk 0:00:07]}  dxe6 {[%clk 0:00:21]} 42. b6 {[%clk 0:00:08]}  Ba6 {[%clk 0:00:20]} 43. Nxe6 {[%clk 0:00:08]}  Kb5 {[%clk 0:00:20]} 44. Nxg5 {[%clk 0:00:08]}  Kxb6 {[%clk 0:00:20]} 45. Nxh7 {[%clk 0:00:08]}  Kc5 {[%clk 0:00:21]} 46. Kd2 {[%clk 0:00:08]}  Kd4 {[%clk 0:00:21]} 47. Ng5 {[%clk 0:00:08]}  Ke5 {[%clk 0:00:21]} 48. Ke3 {[%clk 0:00:08]}  Kf5 {[%clk 0:00:22]} 49. Nf3 {[%clk 0:00:09]}  g5 {[%clk 0:00:22]} 50. Kf2 {[%clk 0:00:09]}  Kg4 {[%clk 0:00:22]} 51. Ne5+ {[%clk 0:00:08]}  Kf4 {[%clk 0:00:21]} 52. Nf3 {[%clk 0:00:08]}  Bb7 {[%clk 0:00:20]} 53. Nd4 {[%clk 0:00:08]}  Ke4 {[%clk 0:00:20]} 54. Ne6 {[%clk 0:00:08]}  Kf5 {[%clk 0:00:19]} 55. Nd4+ {[%clk 0:00:07]}  Kf4 {[%clk 0:00:19]} 56. Ne6+ {[%clk 0:00:07]}  Kf5 {[%clk 0:00:20]} 57. Nc5 {[%clk 0:00:08]}  Bd5 {[%clk 0:00:18]} 58. Kg3 {[%clk 0:00:09]}  Bc6 {[%clk 0:00:18]} 59. Nb3 {[%clk 0:00:09]}  Bb7 {[%clk 0:00:17]} 60. Nd4+ {[%clk 0:00:09]}  Ke5 {[%clk 0:00:17]} 61. Nc2 {[%clk 0:00:09]}  Kf5 {[%clk 0:00:17]} 62. Ne3+ {[%clk 0:00:09]}  Kf6 {[%clk 0:00:16]} 63. Nc4 {[%clk 0:00:09]}  Bd5 {[%clk 0:00:15]} 64. Nb6 {[%clk 0:00:09]}  Be6 {[%clk 0:00:15]} 65. Na4 {[%clk 0:00:09]}  Ke5 {[%clk 0:00:15]} 66. Nc5 {[%clk 0:00:09]}  Bf5 {[%clk 0:00:16]} 67. Nb3 {[%clk 0:00:09]}  Be6 {[%clk 0:00:15]} 68. Nd2 {[%clk 0:00:10]}  Bd5 {[%clk 0:00:14]} 69. Nf1 {[%clk 0:00:10]}  Kd4 {[%clk 0:00:14]} 70. Kf2 {[%clk 0:00:09]}  Ke4 {[%clk 0:00:15]} 71. Ng3+ {[%clk 0:00:10]}  Kf4 {[%clk 0:00:15]} 72. Ne2+ {[%clk 0:00:10]}  Kg4 {[%clk 0:00:14]} 73. Nc3 {[%clk 0:00:10]}  Bc6 {[%clk 0:00:14]} 74. Nd1 {[%clk 0:00:10]}  Kf4 {[%clk 0:00:13]} 75. Ne3 {[%clk 0:00:10]}  Be4 {[%clk 0:00:11]} 76. Nf1 {[%clk 0:00:10]}  Bc6 {[%clk 0:00:11]} 77. Ng3 {[%clk 0:00:10]}  Be8 {[%clk 0:00:10]} 78. Ne2+ {[%clk 0:00:10]}  Kg4 {[%clk 0:00:09]} 79. Nd4 {[%clk 0:00:10]}  Bd7 {[%clk 0:00:09]} 80. Nf3 {[%clk 0:00:09]}  Kf4 {[%clk 0:00:09]} 81. Ne1 {[%clk 0:00:09]}  Bb5 {[%clk 0:00:09]} 82. Ng2+ {[%clk 0:00:09]}  Kg4 {[%clk 0:00:09]} 83. Ne3+ {[%clk 0:00:09]}  Kf4 {[%clk 0:00:10]} 84. Nd5+ {[%clk 0:00:09]}  Kg4 {[%clk 0:00:09]} 85. Nf6+ {[%clk 0:00:09]}  Kf4 {[%clk 0:00:09]} 86. Nh5+ {[%clk 0:00:08]}  Kg4 {[%clk 0:00:10]} 87. Ng3 {[%clk 0:00:09]}  Bd3 {[%clk 0:00:08]} 88. Kg2 {[%clk 0:00:08]}  Kf4 {[%clk 0:00:09]} 89. h3 {[%clk 0:00:07]}  Bb5 {[%clk 0:00:06]} 90. Nh5+ {[%clk 0:00:07]}  Kf5 {[%clk 0:00:06]} 91. Kg3 {[%clk 0:00:07]}  Bf1 {[%clk 0:00:06]} 92. Ng7+ {[%clk 0:00:05]}  Kg6 {[%clk 0:00:05]} 93. Ne8 {[%clk 0:00:04]}  Bxh3 {[%clk 0:00:06]} 94. Kxh3 {[%clk 0:00:05]}  Kf5 {[%clk 0:00:06]} 95. Kg3 {[%clk 0:00:05]}  g4 {[%clk 0:00:07]} 96. Nf6 {[%clk 0:00:06]}  Kxf6 {[%clk 0:00:07]} 97. Kxg4 {[%clk 0:00:06]} 1/2-1/2


[Site "https://www.chess.com"]